bitfinex-derivatives/quotes_SOLF0:USTF0_20241002
["timestamp","ask_amount","ask_price","bid_price","bid_amount"]
[1727870479777,10.53,146.13,146.08,10.53]
[1727870479970,10.65502,146.15,146.11,10.53]
[1727870480172,10.65502,146.15,146.12,10.53]
[1727870480173,0.12502,146.15,146.12,10.53]
[1727870480371,3.422,146.14,146.12,10.53]
[1727870480671,0.12502,146.15,146.11,10.53]
[1727870481072,3.4219,146.14,146.11,10.53]
[1727870481268,0.12502,146.15,146.11,10.53]
[1727870481779,0.12502,146.15,146.13,10.53]
[1727870481969,0.12502,146.15,146.1,5.22]
[1727870481970,5.22,146.19,146.14,10.53]
[1727870482175,3.421,146.18,146.16,13.9513]
[1727870482374,5.34502,146.21,146.17,10.53]
[1727870483169,3.4206,146.2,146.18,10.53]
[1727870484393,3.4204,146.2,146.17,10.53]
[1727870484598,0.12502,146.39,146.19,10.53]
[1727870484888,3.4193,146.25,146.22,10.53]
[1727870485286,3.4193,146.25,146.22,13.95]
[1727870485487,3.4193,146.25,146.22,10.53]
[1727870487290,10.53,146.25,146.21,10.53]
[1727870487791,3.4199,146.23,146.21,10.53]
[1727870487989,10.53,146.23,146.19,2.6487]
[1727870488195,5.22,146.26,146.19,1.2873]
[1727870488398,10.53,146.23,146.19,1.2873]
[1727870488600,3.42,146.22,146.19,1.2873]
[1727870488789,10.53,146.23,146.19,1.2873]
[1727870489093,10.53,146.24,146.19,11.8173]
[1727870489292,3.4204,146.21,146.19,11.8173]
[1727870489490,3.4204,146.21,146.19,1.2873]
[1727870491490,3.4207,146.19,146.17,16.42]
[1727870496700,3.421,146.18,146.16,1.3147]
[1727870496907,21.62,146.22,146.15,0.12502]
[1727870496908,16.42,146.21,146.15,0.12502]
[1727870497401,3.4214,146.16,146.15,0.12502]
[1727870497996,16.42,146.21,146.15,0.12502]
[1727870498801,3.4213,146.17,146.15,0.12502]
[1727870498989,19.86201368,146.21,146.15,0.12502]
[1727870499901,3.4214,146.16,146.15,0.12502]
[1727870503202,3.4228,146.1,146.09,0.12502]
[1727870504299,5.2,146.14,146.09,0.12502]
[1727870504499,3.4226,146.11,146.09,0.12502]
[1727870504995,5.2,146.14,146.1,3.4226]
[1727870504996,3.4222,146.13,146.1,3.4226]
[1727870506796,3.4217,146.15,146.09,21.74502]
[1727870506998,3.4217,146.15,146.1,1.2674]
[1727870507307,3.4217,146.15,146.12,3.4221]
[1727870507699,3.4217,146.15,146.1,2.6285]
[1727870508106,3.422,146.14,146.1,2.6285]
[1727870508297,5.2,146.17,146.12,3.4222]
[1727870508599,5.2,146.17,146.11,16.42]
[1727870508802,5.2,146.17,146.11,19.84368254]
[1727870509006,3.4215,146.16,146.11,19.84368254]
[1727870509202,5.2,146.19,146.11,19.84368254]
[1727870509703,5.2,146.19,146.14,3.4217]
[1727870510499,5.2,146.19,146.11,16.42]
[1727870510697,5.2,146.19,146.11,3.4225]
[1727870510698,21.62,146.19,146.11,3.4225]
[1727870510897,3.4222,146.13,146.11,3.4225]
[1727870511095,21.62,146.19,146.11,3.4225]
[1727870511606,3.422,146.14,146.11,3.4225]
[1727870511903,3.422,146.14,146.1,9.1928]
[1727870511904,21.62,146.19,146.1,9.1928]
[1727870512202,3.4218,146.15,146.1,9.1928]
[1727870512506,3.4218,146.15,146.12,3.4222]
[1727870514205,3.4221,146.13,146.11,3.4224]
[1727870514503,21.62,146.19,146.1,9.1928]
[1727870514914,21.62,146.19,146.12,3.4223]
[1727870516210,3.422,146.14,146.12,3.4223]
[1727870516911,3.4222,146.13,146.11,3.4224]
[1727870517104,3.4222,146.13,146.1,9.1928]
[1727870517304,16.42,146.17,146.1,6.4674]
[1727870517500,16.42,146.17,146.1,1.2674]
[1727870517707,16.42,146.17,146.09,0.12502]
[1727870518310,3.4228,146.1,146.09,0.12502]
[1727870522115,3.4241,146.05,146.03,0.12502]
[1727870522720,3.4242,146.04,146.03,0.12502]
[1727870523023,16.42,146.1,146.03,0.12502]
[1727870523211,3.424,146.05,146.03,0.12502]
[1727870523510,16.42,146.1,146.03,0.12502]
[1727870523911,3.4242,146.04,146.03,0.12502]
[1727870526222,16.42,146.04,145.97,0.12502]
[1727870526425,3.4256,145.98,145.97,0.12502]
[1727870526726,6.4842,146.03,145.97,0.12502]
[1727870527825,16.42,146.02,145.97,0.12502]
[1727870528026,3.4256,145.98,145.97,0.12502]
[1727870531328,3.4268,145.93,145.91,16.54502]
[1727870531517,3.4268,145.93,145.91,0.12502]
[1727870531724,5.2,145.95,145.91,0.12502]
[1727870532522,8.6264,145.95,145.92,3.4269]
[1727870533024,3.4261,145.96,145.93,3.4266]
[1727870533432,21.62,145.98,145.91,16.54502]
[1727870534328,3.4267,145.94,145.91,19.97212]
[1727870534628,21.62,145.98,145.91,16.54502]
[1727870534932,3.4269,145.93,145.91,0.12502]
[1727870535127,21.62,145.98,145.91,0.12502]
[1727870535633,21.62,145.98,145.92,3.4268]
[1727870535928,21.62,145.98,145.91,0.12502]
[1727870536139,3.4264,145.95,145.92,3.4269]
[1727870536425,21.62,145.98,145.92,3.4269]
[1727870537334,3.4266,145.94,145.92,3.4269]
[1727870538031,21.62,145.98,145.91,0.12502]
[1727870538628,3.427,145.92,145.91,0.12502]
[1727870538830,8.627,145.92,145.91,0.12502]
[1727870541938,3.427,145.92,145.91,0.12502]
[1727870547840,3.4266,145.94,145.91,3.55222]
[1727870548030,16.42,146.0,145.91,0.12502]
[1727870548230,5.22,145.99,145.91,0.12502]
[1727870548436,3.4263,145.95,145.93,3.4266]
[1727870548640,5.22,145.99,145.91,1.43132]
[1727870548840,16.42,146.0,145.92,16.42]
[1727870549141,2.5379,146.02,145.92,16.42]
[1727870549142,3.4258,145.98,145.92,16.42]
[1727870549341,3.4258,145.98,145.92,19.1175]
[1727870549644,5.22,145.99,145.92,2.6975]
[1727870549645,3.4262,145.96,145.92,2.6975]
[1727870550333,3.4257,145.98,145.93,16.42]
[1727870550540,5.2,146.0,145.93,16.42]
[1727870550839,5.2,146.0,145.96,3.4259]
[1727870551040,3.4255,145.99,145.96,3.4259]
[1727870551445,5.2,146.0,145.94,16.42]
[1727870551637,8.6253,146.0,145.97,3.4256]
[1727870553648,3.4258,145.98,145.95,3.4262]
[1727870553947,3.4258,145.98,145.92,19.1175]
[1727870554745,8.6252,146.0,145.95,3.4261]
[1727870554940,5.2,146.0,145.94,16.42]
[1727870555356,5.2,146.0,145.97,3.4258]
[1727870555959,5.32502,146.03,145.96,16.42]
[1727870556164,5.32502,146.03,145.97,1.3044]
[1727870557156,3.4253,146.0,145.97,4.7301]
[1727870557551,3.4255,145.99,145.96,3.426]
[1727870557756,5.32502,146.03,145.95,5.2]
[1727870558361,5.32502,146.03,145.94,16.42]
[1727870558362,3.4254,145.99,145.94,16.42]
[1727870558562,3.4254,145.99,145.94,21.62]
[1727870559066,3.4254,145.99,145.96,3.4258]
[1727870559764,5.32502,146.03,145.95,3.4263]
[1727870559958,16.42,146.01,145.95,3.4263]
[1727870560670,16.42,145.99,145.93,1.3044]
[1727870560966,3.4266,145.94,145.91,0.12502]
[1727870561166,3.4266,145.94,145.91,3.55212]
[1727870561952,3.4266,145.94,145.91,0.12502]
[1727870562263,3.4266,145.94,145.91,3.55212]
[1727870564772,3.4259,145.97,145.91,3.55212]
[1727870564975,21.62,145.99,145.91,3.55212]
[1727870565274,16.42,145.98,145.91,3.55212]
[1727870565567,3.4267,145.94,145.91,3.55212]
[1727870568475,3.4268,145.93,145.91,3.55212]
[1727870569168,3.4268,145.93,145.91,0.12502]
[1727870569364,3.49805383,145.97,145.91,0.12502]
[1727870569676,3.427,145.92,145.91,0.12502]
[1727870573074,16.47,145.99,145.91,0.12502]
[1727870573375,5.2,145.97,145.91,0.12502]
[1727870573578,3.4264,145.95,145.92,3.4268]
[1727870574379,3.4262,145.96,145.93,3.4266]
[1727870574676,5.2,145.97,145.93,3.4266]
[1727870576080,3.4265,145.95,145.91,0.12502]
[1727870576277,5.2,145.97,145.92,3.4268]
[1727870576784,5.2,145.97,145.91,0.12502]
[1727870577383,21.67,145.97,145.91,0.12502]
[1727870577584,3.427,145.92,145.91,0.12502]
[1727870582690,8.6269,145.93,145.91,0.12502]
[1727870583375,3.427,145.92,145.91,0.12502]
[1727870587491,16.47,145.92,145.83,2.6647]
[1727870587790,3.4284,145.86,145.83,1.3301]
[1727870588090,3.4284,145.86,145.82,3.4292]
[1727870588494,3.4296,145.81,145.8,0.12518]
[1727870593789,19.8996,145.81,145.8,0.12518]
[1727870594094,3.4298,145.8,145.79,0.12502]
[1727870594294,8.6298,145.8,145.79,0.12502]
[1727870594989,8.6298,145.81,145.79,0.12502]
[1727870595184,5.2,145.81,145.79,0.12502]
[1727870595390,16.47,145.84,145.79,0.12502]
[1727870595695,3.4298,145.8,145.79,0.12502]
[1727870596694,16.47,145.8,145.73,0.12502]
[1727870596893,3.4311,145.75,145.73,0.12502]
[1727870597693,3.4308,145.76,145.73,3.55642]
[1727870598092,5.2,145.79,145.73,0.12502]
[1727870598796,5.2,145.79,145.74,3.4312]
[1727870599399,3.4307,145.77,145.74,3.4312]
[1727870599707,16.47,145.8,145.75,3.431]
[1727870599893,5.2,145.8,145.73,0.12502]
[1727870600397,16.47,145.84,145.74,16.47]
[1727870600586,5.2,145.83,145.75,1.2903]
[1727870600795,5.2,145.83,145.75,2.6176]
[1727870601400,3.4298,145.81,145.77,3.4303]
[1727870601592,5.2,145.83,145.77,3.4303]
[1727870602095,3.4298,145.8,145.77,3.4303]
[1727870602897,3.4298,145.8,145.75,2.6176]
[1727870602898,16.47,145.84,145.75,2.6176]
[1727870603097,0.12502,145.85,145.78,16.47]
[1727870603299,0.12502,145.85,145.8,16.47]
[1727870603708,0.12502,145.85,145.78,25.10520662]
[1727870603709,0.12502,145.85,145.82,16.47]
[1727870604013,0.12502,145.85,145.82,21.67]
[1727870604388,0.12502,145.85,145.84,19.8989]
[1727870605699,3.55242,145.91,145.87,3.428]
[1727870605892,0.12502,145.91,145.84,17.8098]
[1727870606195,0.12502,145.91,145.86,3.4284]
[1727870606196,3.4276,145.9,145.86,3.4284]
[1727870606400,3.4276,145.9,145.84,17.8098]
[1727870607498,0.12502,145.91,145.84,17.8098]
[1727870607797,3.4277,145.89,145.86,3.4282]
[1727870608395,3.4275,145.9,145.87,3.4281]
[1727870608597,0.12502,145.91,145.86,16.47]
[1727870608794,0.12502,145.91,145.88,16.47]
[1727870609802,0.12502,145.91,145.88,19.8977]
[1727870609993,0.12502,145.91,145.88,16.47]
[1727870610503,0.12502,145.91,145.9,3.4275]
[1727870611102,3.4262,145.96,145.89,16.47]
[1727870611297,3.4262,145.96,145.92,3.4269]
[1727870611496,5.32502,145.97,145.92,3.4269]
[1727870611697,3.4263,145.95,145.92,3.4269]
[1727870614296,5.32502,145.97,145.89,16.47]
[1727870614494,3.4268,145.94,145.89,16.47]
[1727870614701,5.32502,145.97,145.89,16.47]
[1727870615202,5.32502,145.97,145.9,5.2]
[1727870615709,0.12502,145.97,145.9,5.2]
[1727870615909,0.12502,145.97,145.9,6.4629]
[1727870616203,0.12502,145.97,145.93,16.47]
[1727870617401,0.12502,145.97,145.95,3.4261]
[1727870617604,0.12502,145.97,145.93,16.47]
[1727870617801,90.67502,146.03,145.95,16.47]
[1727870617802,5.2,146.02,145.95,16.47]
[1727870618006,5.2,146.02,145.95,19.9736398]
[1727870618605,3.425,146.01,145.95,19.9736398]
[1727870618804,5.2,146.02,145.97,16.47]
[1727870619014,0.12502,146.03,145.99,16.47]
[1727870619710,0.12502,146.03,146.02,3.4247]
[1727870619899,16.47,146.12,146.02,5.2]
[1727870620211,5.2,146.1,146.04,16.47]
[1727870620408,3.54812,146.09,146.05,3.4237]
[1727870620707,0.12502,146.09,146.04,16.47]
[1727870621914,3.54822,146.09,146.04,16.47]
[1727870622104,0.12502,146.09,146.04,16.47]
[1727870623109,0.12502,146.09,146.08,16.47]
[1727870623504,5.32502,146.15,146.08,16.47]
[1727870623805,8.74682,146.15,146.1,16.47]
[1727870624009,3.54682,146.15,146.1,16.47]
[1727870624305,3.54682,146.15,146.11,5.2]
[1727870624502,3.54682,146.15,146.12,16.47]
[1727870624503,0.12502,146.15,146.12,16.47]
[1727870625011,0.12502,146.15,146.12,19.8922]
[1727870625512,0.12502,146.15,146.12,3.4222]
[1727870625806,0.12502,146.15,146.12,3.4223]
[1727870626608,0.12502,146.15,146.09,1.3018]
[1727870626815,0.12502,146.15,146.09,5.2]
[1727870627305,0.12502,146.15,146.06,31.49]
[1727870627714,3.4232,146.09,146.06,31.49]
[1727870627908,0.12502,146.15,146.06,31.49]
[1727870628103,26.41502,146.15,146.06,5.2]
[1727870628913,3.4232,146.09,146.06,5.2]
[1727870629108,3.4232,146.09,146.05,8.6238]
[1727870630410,3.4233,146.08,146.05,8.6238]
[1727870631312,3.4235,146.07,146.05,5.2]
[1727870631810,3.4238,146.06,146.04,9.2392]
[1727870633315,5.2,146.12,146.04,9.2392]
[1727870633515,5.2,146.12,146.04,12.6633]
[1727870635519,5.2,146.12,146.04,9.2392]
[1727870636014,3.4237,146.07,146.04,7.4633]
[1727870636212,5.2,146.12,146.04,4.0392]
[1727870636813,3.4236,146.07,146.04,7.4634]
[1727870638313,5.2,146.12,146.04,4.0392]
[1727870638514,3.4238,146.06,146.04,4.0392]
[1727870640515,5.2,146.12,146.04,7.4632]
[1727870640717,5.2,146.12,146.04,4.0392]
[1727870641013,3.4239,146.06,146.04,4.0392]
[1727870641714,5.2,146.12,146.03,0.12502]
[1727870641913,9.1797,146.12,146.03,0.12502]
[1727870642218,3.4242,146.04,146.03,0.12502]
[1727870645521,3.4256,145.98,145.97,0.12502]
[1727870650028,2.6117,146.03,145.97,0.12502]
[1727870650326,3.4255,145.99,145.97,0.12502]
[1727870650918,3.4252,146.0,145.97,0.12502]
[1727870651119,5.2,146.03,145.97,0.12502]
[1727870652425,3.4255,145.99,145.97,0.12502]
[1727870653323,5.2,146.03,145.97,0.12502]
[1727870653530,5.2,146.05,145.98,16.45]
[1727870653832,25.00284196,146.05,145.97,0.12502]
[1727870654031,3.4256,145.98,145.97,0.12502]
[1727870662626,3.427,145.92,145.91,0.12502]
[1727870663231,21.65,145.96,145.92,3.4268]
[1727870663232,5.2,145.96,145.92,3.4268]
[1727870663432,5.2,145.96,145.91,0.12502]
[1727870664539,5.2,145.96,145.91,3.55222]
[1727870664838,5.2,145.96,145.91,0.12502]
[1727870665430,3.4269,145.93,145.91,0.12502]
[1727870665641,5.2,145.96,145.91,0.12502]
[1727870665835,3.427,145.92,145.91,0.12502]
[1727870666836,8.627,145.92,145.91,0.12502]
[1727870670643,5.2,145.92,145.85,0.12502]
[1727870670836,3.4283,145.87,145.85,0.12502]
[1727870671835,3.4283,145.87,145.85,3.55362]
[1727870674443,3.428,145.88,145.85,3.55362]
[1727870674942,3.4278,145.89,145.86,3.4283]
[1727870675332,3.4281,145.88,145.85,3.55352]
[1727870675532,5.2,145.92,145.85,0.12502]
[1727870675737,16.45,145.95,145.86,16.45]
[1727870675940,5.2,145.94,145.89,3.4276]
[1727870676540,5.2,145.94,145.88,16.45]
[1727870676735,3.4274,145.91,145.88,19.8778]
[1727870677539,3.427,145.93,145.88,16.45]
[1727870677750,5.2,145.94,145.88,16.45]
[1727870677939,5.2,145.94,145.9,3.4273]
[1727870678244,5.2,145.94,145.88,16.45]
[1727870678641,3.4274,145.91,145.88,16.45]
[1727870679147,3.4276,145.9,145.88,19.8778]
[1727870679642,3.4276,145.9,145.88,3.4278]
[1727870680650,3.4274,145.91,145.88,3.4278]
[1727870681745,3.4274,145.91,145.86,21.65]
[1727870681945,3.4271,145.92,145.89,3.4275]
[1727870682849,5.2,145.94,145.88,16.45]
[1727870683045,3.4269,145.93,145.91,3.4271]
[1727870683354,5.2,145.94,145.91,3.4271]
[1727870683542,5.2,145.94,145.88,16.45]
[1727870683853,3.49387168,145.97,145.88,16.45]
[1727870684047,3.4272,145.92,145.88,16.45]
[1727870684349,5.2,145.96,145.88,16.45]
[1727870684548,5.2,145.96,145.89,3.4276]
[1727870685346,3.4272,145.92,145.89,3.4276]
[1727870687956,3.4274,145.91,145.89,3.4276]
[1727870690957,5.2,145.96,145.88,16.45]
[1727870691257,3.4275,145.9,145.88,19.8779]
[1727870692554,5.2,145.96,145.88,19.8779]
[1727870692555,3.4274,145.91,145.88,19.8779]
[1727870692861,3.4274,145.91,145.89,3.4276]
[1727870695862,5.2,145.96,145.88,16.45]
[1727870696163,16.45,145.93,145.85,0.12502]
[1727870696355,5.2,145.92,145.85,0.12502]
[1727870697563,3.4281,145.88,145.86,13.9582]
[1727870697955,10.53,145.91,145.86,10.53]
[1727870698259,3.4281,145.88,145.86,10.53]
[1727870698459,5.2,145.92,145.86,10.53]
[1727870698654,15.73,145.92,145.86,10.53]
[1727870698860,15.73,145.92,145.88,10.53]
[1727870699362,3.4276,145.9,145.88,13.9579]
[1727870699562,3.4276,145.9,145.88,3.4279]
[1727870699758,24.6694,145.95,145.87,16.45]
[1727870699759,1.3667,145.95,145.87,16.45]
[1727870699951,5.2,145.94,145.89,3.4276]
[1727870700355,5.2,145.94,145.85,16.57502]
[1727870700557,16.45,145.93,145.85,0.12502]
[1727870700760,16.45,145.91,145.85,0.12502]
[1727870700961,3.4284,145.86,145.85,0.12502]
[1727870702676,8.6284,145.86,145.85,0.12502]
[1727870703079,3.4281,145.88,145.85,0.12502]
[1727870703376,5.2,145.89,145.85,0.12502]
[1727870703569,3.4282,145.87,145.85,0.12502]
[1727870703773,5.2,145.89,145.85,0.12502]
[1727870704180,8.56382908,145.89,145.85,0.12502]
[1727870704579,25.01382908,145.89,145.85,0.12502]
[1727870704878,3.4284,145.86,145.85,0.12502]
[1727870714475,3.4298,145.8,145.79,0.12502]
[1727870715781,3.4309,145.76,145.73,0.12502]
[1727870715981,3.4309,145.76,145.73,3.55632]
[1727870716578,5.2,145.78,145.73,0.12502]
[1727870716579,3.4312,145.74,145.73,0.12502]
[1727870717088,5.2,145.78,145.73,0.12502]
[1727870717383,5.2,145.82,145.73,0.12502]
[1727870718585,16.45,145.81,145.73,0.12502]
[1727870719585,3.4307,145.77,145.74,3.4311]
[1727870720181,5.2,145.78,145.73,0.12502]
[1727870720587,21.65,145.78,145.73,0.12502]
[1727870720787,3.4312,145.74,145.73,0.12502]
[1727870720984,8.6312,145.74,145.73,0.12502]
[1727870721488,3.4321,145.71,145.68,3.4325]
[1727870721788,21.65,145.74,145.69,3.4324]
[1727870722183,21.65,145.74,145.67,0.12502]
[1727870723083,2.76222,145.79,145.67,0.12502]
[1727870723385,16.45,145.76,145.69,16.45]
[1727870723695,3.4313,145.74,145.7,3.432]
[1727870723890,8.6313,145.74,145.7,3.432]
[1727870724086,5.2,145.74,145.67,16.57502]
[1727870724588,3.4321,145.71,145.67,0.12502]
[1727870724787,21.65,145.74,145.67,3.55772]
[1727870725180,3.4323,145.7,145.67,3.55772]
[1727870725387,21.65,145.74,145.67,0.12502]
[1727870725883,3.4326,145.69,145.67,0.12502]
[1727870726084,21.65,145.7,145.67,0.12502]
[1727870726292,3.4326,145.68,145.67,0.12502]
[1727870730387,3.4336,145.64,145.6,17.8329]
[1727870730590,21.65,145.66,145.57,17.785]
[1727870730794,5.2,145.65,145.61,3.55922]
[1727870731088,77.50573606,145.72,145.61,0.12502]
[1727870731288,16.45,145.68,145.63,3.4337]
[1727870731488,5.2,145.67,145.63,3.4337]
[1727870731691,3.4334,145.65,145.63,3.4337]
[1727870731892,8.6334,145.65,145.63,3.4337]
[1727870732292,8.6334,145.65,145.62,3.4339]
[1727870732489,8.6334,145.65,145.61,0.12502]
[1727870732490,3.4337,145.64,145.61,0.12502]
[1727870732801,5.2,145.65,145.61,0.12502]
[1727870733195,3.4341,145.62,145.61,0.12502]
[1727870736186,16.45,145.63,145.55,0.12502]
[1727870736393,16.45,145.59,145.55,0.12502]
[1727870736594,3.4351,145.58,145.55,3.56052]
[1727870736899,16.45,145.63,145.55,0.12502]
[1727870737402,5.2,145.62,145.55,0.12502]
[1727870737589,3.4347,145.6,145.57,3.4351]
[1727870738194,1.3469,145.64,145.56,16.45]
[1727870738396,3.4341,145.62,145.56,16.45]
[1727870738599,5.2,145.63,145.56,16.45]
[1727870738794,3.4347,145.6,145.57,3.4351]
[1727870739497,21.65,145.63,145.57,3.4351]
[1727870739692,3.4348,145.59,145.57,3.4351]
[1727870740092,21.65,145.63,145.57,3.4351]
[1727870740499,3.4344,145.61,145.58,3.4349]
[1727870740690,21.65,145.63,145.58,3.4349]
[1727870741896,19.1018,145.65,145.6,3.4344]
[1727870742103,5.2,145.62,145.56,19.113]
[1727870742598,5.2,145.62,145.58,3.4349]
[1727870742993,3.4343,145.61,145.56,19.113]
[1727870743195,3.4343,145.61,145.59,3.4348]
[1727870743592,5.2,145.62,145.56,2.663]
[1727870743796,3.4347,145.6,145.57,3.4351]
[1727870744205,5.2,145.62,145.57,3.4351]
[1727870744906,3.4347,145.6,145.57,3.4351]
[1727870745804,5.2,145.62,145.55,4.81942]
[1727870745805,3.4352,145.58,145.55,4.81942]
[1727870746007,16.45,145.61,145.55,4.81942]
[1727870746201,16.45,145.61,145.55,0.12502]
[1727870746709,3.4354,145.57,145.55,0.12502]
[1727870747003,5.2,145.57,145.55,0.12502]
[1727870747399,3.4355,145.56,145.55,0.12502]
[1727870747703,5.2,145.57,145.55,0.12502]
[1727870748007,8.6354,145.57,145.55,0.12502]
[1727870748499,5.2,145.57,145.55,3.56062]
[1727870749202,8.6353,145.57,145.55,3.56062]
[1727870749905,8.6353,145.57,145.55,0.12502]
[1727870750697,16.45,145.61,145.55,0.12502]
[1727870750902,5.2,145.6,145.55,0.12502]
[1727870751401,3.4349,145.59,145.56,3.4354]
[1727870751603,5.2,145.6,145.56,3.4354]
[1727870752304,3.4348,145.59,145.56,3.4354]
[1727870752498,5.2,145.6,145.56,3.4354]
[1727870753206,3.4348,145.59,145.56,3.4354]
[1727870753409,5.2,145.6,145.56,3.4354]
[1727870754103,3.4351,145.58,145.56,3.4354]
[1727870754903,3.4352,145.57,145.55,3.56062]
[1727870755103,5.2,145.6,145.55,3.56062]
[1727870755904,3.4353,145.57,145.55,3.56062]
[1727870756113,5.2,145.6,145.55,0.12502]
[1727870756307,16.45,145.59,145.55,0.12502]
[1727870756507,3.4355,145.56,145.55,0.12502]
[1727870757811,3.4352,145.58,145.55,0.12502]
[1727870758010,16.45,145.59,145.55,0.12502]
[1727870758407,4.7628128,145.64,145.55,0.12502]
[1727870758408,3.4347,145.6,145.55,0.12502]
[1727870758606,16.45,145.59,145.55,0.12502]
[1727870758802,16.45,145.57,145.55,0.12502]
[1727870759007,8.6355,145.56,145.55,0.12502]
[1727870759511,3.4364,145.52,145.51,0.12518]
[1727870760705,19.8864,145.52,145.51,0.12518]
[1727870760912,25.1064,145.52,145.51,0.12518]
[1727870761209,3.4369,145.5,145.49,0.12502]
[1727870761513,16.45,145.5,145.44,1.388]
[1727870761813,3.4375,145.48,145.45,3.438]
[1727870762014,3.4375,145.48,145.44,1.388]
[1727870762211,3.4369,145.51,145.45,16.45]
[1727870762406,20.00178473,145.55,145.45,17.7943]
[1727870762611,20.00178473,145.55,145.47,3.4375]
[1727870762612,5.22,145.53,145.47,3.4375]
[1727870762812,16.45,145.52,145.45,1.3443]
[1727870763514,5.22,145.53,145.43,0.12502]
[1727870763515,16.45,145.48,145.43,0.12502]
[1727870763716,3.55178473,145.55,145.43,0.12502]
[1727870763717,16.45,145.46,145.43,0.12502]
[1727870764022,3.4383,145.44,145.43,0.12502]
[1727870764812,19.8883,145.44,145.43,0.12502]
[1727870765015,3.4394,145.4,145.37,0.12502]
[1727870765214,5.22,145.41,145.37,0.12502]
[1727870765519,5.22,145.41,145.37,3.56482]
[1727870765724,3.4392,145.41,145.37,0.12502]
[1727870765911,16.45,145.46,145.37,0.12502]
[1727870766114,5.22,145.44,145.38,16.45]
[1727870766416,3.4383,145.44,145.38,16.45]
[1727870766621,16.45,145.48,145.38,16.45]
[1727870766822,5.22,145.45,145.38,16.45]
[1727870767819,5.22,145.45,145.42,3.4387]
[1727870767820,8.6581,145.45,145.42,3.4387]
[1727870768026,5.22,145.45,145.42,3.4387]
[1727870768412,3.4378,145.47,145.42,3.4387]
[1727870768612,0.12502,145.49,145.4,16.45]
[1727870768817,5.34502,145.49,145.42,16.45]
[1727870769021,3.4378,145.47,145.41,3.9901]
[1727870769217,5.34502,145.49,145.41,3.9901]
[1727870769412,16.45,145.48,145.41,3.9901]
[1727870770429,5.22,145.47,145.41,3.9901]
[1727870771529,0.12502,145.49,145.42,25.29743364]
[1727870772029,0.12502,145.49,145.46,3.4377]
[1727870772329,0.12502,145.49,145.42,21.79]
[1727870772528,3.4374,145.48,145.45,3.4379]
[1727870772732,3.4374,145.48,145.42,21.79]
[1727870772733,0.12502,145.49,145.42,21.79]
[1727870773124,16.45,145.48,145.41,3.9901]
[1727870773624,3.4379,145.46,145.41,7.429]
[1727870773838,16.45,145.44,145.37,0.12502]
[1727870774224,16.45,145.44,145.37,3.56492]
[1727870774225,3.4392,145.41,145.37,3.56492]
[1727870774425,16.45,145.44,145.37,0.12502]
[1727870774626,3.4392,145.41,145.38,3.4396]